Cogmind - Beta 13 @@@ ROGUE MODE // 2024.07.15 @ 11:45:11 Player: ZergFTW Result: Destroyed by G-34 Mercenary with Small Laser Performance ------------- Evolutions (0) 0 Regions Visited (1) 200 Robots Destroyed (33) 165 Value Destroyed (604) 604 Prototype IDs (0) 0 Alien Tech Used (0) 0 Bonus (0) 0 TOTAL SCORE: 969 Bonus ------- None Cogmind --------- Core Integrity 0/250 Matter 300/300 Energy 250/250 System Corruption 0% Temperature Warm (187) Movement Treading (320) Ox2 Location -10/Materials Parts ------- > --- POWER (1) -------- Ion Engine > --- PROPULSION (2) --- Light Treads > --- UTILITY (2) ------ High-capacity Storage Unit > --- WEAPON (2) ------- EM Pulse Gun Small Laser > --- INVENTORY (20) --- Light Ion Engine Light Treads Small Storage Unit High-capacity Storage Unit Medium Matter Pod (100) Structural Scanner Seismic Detector Transport Network Coupler Transport Network Coupler Grenade Launcher Mining Laser Peak State ------------ > --- POWER ------------ Ion Engine > --- PROPULSION ------- Light Treads Light Treads > --- UTILITY ---------- Huge Storage Unit Seismic Detector > --- WEAPON ----------- Particle Gun Assault Rifle > --- INVENTORY -------- Light Ion Engine Light Treads Light Treads Small Storage Unit Medium Matter Pod Transport Network Coupler EM Pulse Gun Small Laser Grenade Launcher Mining Laser [Rating: 9] Favorites ----------- Power Ion Engine Engine Ion Engine Propulsion Light Treads Treads Light Treads Utility Seismic Detector Device Seismic Detector Storage High-capacity Storage Unit Weapon Assault Rifle Energy Gun Particle Gun Ballistic Gun Assault Rifle Special Weapon Mining Laser Build | -11 -10 ------- Run | Yrd Mat Slots Evolved . | . . Power . | . . Propulsion . | . . Utility . | . . Weapon . | . . Parts Attached 20 | 7 13 Power 4 | 1 3 Engine 4 | 1 3 Core . | . . Reactor . | . . Propulsion 3 | 2 1 Treads 3 | 2 1 Leg . | . . Wheel . | . . Hover . | . . Flight . | . . Utility 7 | 2 5 Device 3 | 1 2 Storage 4 | 1 3 Processor . | . . Hackware . | . . Protection . | . . Artifact . | . . Weapon 6 | 2 4 Energy Gun 4 | 1 3 Energy Cannon . | . . Ballistic Gun 1 | 1 . Ballistic Cannon . | . . Launcher . | . . Special Weapon 1 | . 1 Impact Weapon . | . . Slashing Weapon . | . . Piercing Weapon . | . . Special Melee Weapon . | . . Unidentified Prototypes . | . . Parts Lost 5 | . 5 Power . | . . Propulsion 2 | . 2 Utility 1 | . 1 Weapon 2 | . 2 Highest Loss Streak 4 | . 4 To Critical Strikes . | . . Average Slot Usage (%) 99 | . 99 Engine 14 | . 14 Treads 27 | . 27 Device 13 | . 13 Storage 14 | . 14 Energy Gun 14 | . 14 Ballistic Gun 9 | . 9 Special Weapon 3 | . 3 Naked Turns . | . . Heaviest Build 91 | 12 91 Greatest Support 40 | 40 40 Greatest Overweight (x) 3 | 3 2 Average Overweight (x) 1 | . 1 Largest Inventory Capacity 25 | 8 25 Average Capacity 20 | 7 21 Most Carried 13 | 4 13 Average Carried 8 | 2 9 Final Capacity 20 | 8 20 Final Carried 11 | 4 11 Class Distribution -------------------- 100% | Mutant Dominant Class ---------------- Mutant | -10/Materials Resources | -11 -10 ----------- Run | Yrd Mat Matter Collected 642 | 331 311 Remotely . | . . Salvage Created 934 | 155 779 Parts 77 | 9 68 Haulers Intercepted 2 | . 2 Recyclers Shooed 1 | . 1 Parts Field Recycled . | . . Retrieved Matter . | . . Parts Self-Destructed . | . . Prevented . | . . Kills | -11 -10 ------- Run | Yrd Mat Combat Hostiles Destroyed 18 | . 18 Guns 17 | . 17 Cannons 1 | . 1 Classes Destroyed 9 | 3 6 Worker 4 | 2 2 Builder 1 | . 1 Tunneler 2 | 2 . Hauler 2 | . 2 Recycler 1 | 1 . Operator 2 | . 2 Watcher 3 | . 3 Swarmer 6 | . 6 Grunt 12 | . 12 Best Kill Streak 4 | 3 4 Combat Bots Only 3 | . 3 Max Kills in Single Turn 2 | 1 2 Gunslinging . | . . Exploded . | . . Melee . | . . Uniques/NPCs Destroyed . | . . Combat | -11 -10 -------- Run | Yrd Mat Hostile Shots Fired 138 | . 138 Missed 35 | . 35 Damage Taken 1051 | . 1051 Core 257 | . 257 Absorbed by Shields . | . . Core Remaining (%) 100 | 100 . Volleys Fired 84 | 11 73 Largest 2 | 2 2 Hottest 165 | 60 165 Shots Fired 163 | 22 141 Gun 155 | 22 133 Cannon . | . . Launcher . | . . Special 8 | . 8 Kinetic 67 | 11 56 Thermal 90 | 11 79 Explosive . | . . Electromagnetic 6 | . 6 Robot Hit Streak 10 | 5 10 Robot Miss Streak 4 | 2 4 Penetration Max . | . . Secondary Targets 2 | . 2 Max Gunslinging Chain 1 | . 1 Shots Hit Robots 96 | 11 85 Core Hits 48 | 6 42 Critical Kills . | . . Critical Parts Destroyed . | . . Critical Strikes 3 | . 3 Burn 3 | . 3 Melee Attacks . | . . Impact . | . . Slashing . | . . Piercing . | . . Sneak Attacks . | . . Combat Hostiles . | . . Follow-up Attacks . | . . Damage Inflicted 1385 | 155 1230 Guns 1337 | 155 1182 Cannons . | . . Explosions . | . . Melee . | . . Ramming . | . . Kinetic 465 | 88 377 Thermal 853 | 67 786 Explosive . | . . Electromagnetic 67 | . 67 Impact . | . . Slashing . | . . Piercing . | . . Highest Corruption . | . . Average Corruption . | . . Corruption Purged . | . . Corruption Blocked . | . . Overload Shots . | . . Overflow Damage . | . . Projectiles . | . . Explosions . | . . Melee . | . . Knockbacks . | . . Impact . | . . Kinetic . | . . Secondary . | . . Self-Inflicted Damage . | . . Shots . | . . Rammed . | . . Targets Rammed . | . . Kicked . | . . Crushed . | . . Highest Temperature 373 | . 373 Average Temperature 98 | . 98 Received Heat Transfer 447 | . 447 Siege Activations . | . . Robots Corrupted . | . . Combat Hostiles . | . . Parts Fried . | . . Impact Corruptions . | . . Robots Melted . | . . Combat Hostiles . | . . Parts Melted 1 | . 1 Heat Transferred 2195 | 150 2045 Parts Sabotaged . | . . Parts Stolen . | . . Parts Stripped . | . . Power Chain Reactions . | . . Alert | -11 -10 ------- Run | Yrd Mat Peak Influence 217 | 25 217 Initial 16 | . 16 Average 87 | 9 93 Maximum Alert Level 1 | . 1 Low Security (%) 92 | 100 92 Level 1 7 | . 7 Level 2 . | . . Level 3 . | . . Level 4 . | . . Level 5 . | . . High Security . | . . Max Security . | . . Squads Dispatched 5 | . 5 Investigation 3 | . 3 Extermination . | . . Reinforcement 2 | . 2 Assault . | . . Garrison . | . . Intercept . | . . Searches Triggered . | . . Construction Impeded . | . . Haulers Reinforced . | . . Active Scanning Responses . | . . Cargo Convoy Interrupts . | . . Stealth | -11 -10 --------- Run | Yrd Mat Distress Signals 2 | . 2 Communications Jammed . | . . Distress Signals . | . . Times Spotted 27 | . 27 Peak Tracking Total 5 | . 5 Tactical Retreats 1 | . 1 Traps | -11 -10 ------- Run | Yrd Mat Traps Triggered 3 | . 3 Indirectly . | . . Trap Hack Attempts . | . . Triggered . | . . Disarmed . | . . Reprogrammed . | . . Reused . | . . Traps Extracted . | . . Installed . | . . Triggered . | . . Machines | -11 -10 ---------- Run | Yrd Mat Machines Disabled 1 | . 1 Max in Single Turn 1 | . 1 Machines Repaired . | . . Machines Dismantled . | . . Machines Sabotaged . | . . Overloaded Fab Kills . | . . Hacking | -11 -10 --------- Run | Yrd Mat Machines Accessed 6 | . 6 Terminals 4 | . 4 Fabricators . | . . Repair Stations . | . . Recycling Units 2 | . 2 Scanalyzers . | . . Garrison Access . | . . Total Hacks 14 | . 14 Successful 6 | . 6 Failed 8 | . 8 Catastrophic 2 | . 2 Database Lockouts . | . . Manual 11 | . 11 Terminals 12 | . 12 Fabricators . | . . Repair Stations . | . . Recycling Units 2 | . 2 Scanalyzers . | . . Garrison Access . | . . Terminal Hacks 1 | . 1 Locate Traps 1 | . 1 Fabricator Hacks . | . . Repair Station Hacks . | . . Recycling Unit Hacks 2 | . 2 Report Inventory 2 | . 2 Scanalyzer . | . . Garrison Access Hacks . | . . Unauthorized Hacks 3 | . 3 Terminals 3 | . 3 Botnet 3 | . 3 Fabricators . | . . Repair Stations . | . . Recycling Units . | . . Scanalyzers . | . . Garrison Access . | . . Data Cores Recovered . | . . Used . | . . Hacking Detections 5 | . 5 Full Trace Events . | . . Feedback Events . | . . Feedback Blocked . | . . Robot Schematics Acquired . | . . Robots Built . | . . Authchips . | . . Time . | . . Total Robot Build Rating . | . . Part Schematics Acquired . | . . Parts Built . | . . Authchips . | . . Time . | . . Total Part Build Rating . | . . Parts Repaired . | . . Time . | . . Parts Recycled . | . . Recycled Matter . | . . Retrieved Matter . | . . Retrieved Components . | . . Parts Scanalyzed . | . . Part Schematics Acquired . | . . Parts Damaged . | . . Bothacking | -11 -10 ------------ Run | Yrd Mat Used RIF Installer . | . . Robots Hacked . | . . Non-combat . | . . Combat . | . . Robot Hacks Applied . | . . Relay Couplers Released . | . . Fabnet Peak Effective % . | . . Robots Rewired . | . . Allies Hacked . | . . Hacks Repelled . | . . Allies | -11 -10 -------- Run | Yrd Mat Total Allies . | . . Largest Group . | . . Highest-Rated Group . | . . Highest-Rated Ally . | . . Total Orders . | . . Ally Attacks . | . . Total Damage . | . . Kills . | . . Allies Corrupted . | . . Allies Melted . | . . Intel | -11 -10 ------- Run | Yrd Mat Robot Analysis Total . | . . Derelict Logs Recovered . | . . Drone Launches . | . . Drone Recoveries . | . . Exploration | -11 -10 ------------- Run | Yrd Mat Turns Passed 2061 | 150 1911 Spaces Moved 687 | 67 620 Core 9 | 9 . Treads 678 | 58 620 Legs . | . . Wheels . | . . Hover . | . . Flight . | . . Fastest Speed 50 | 50 160 Average Speed 252 | 154 262 Slowest Speed 320 | 200 320 Overloaded Moves . | . . Propulsion Burnouts . | . . Robots Hopped . | . . Cave-ins Triggered . | . . Exploration Rate (%) 44 | 4 85 Regions Visited 1 Branch Regions . Pre-discovered Areas . | . . Known Exits Taken . | . . Unknown Exits Taken 1 | 1 . Scrap Searched . | . . Spaces Dug . | . . Terrain Destroyed 3 | . 3 Melee . | . . Projectile 3 | . 3 AOE . | . . Terrain Rammed . | . . Walls Destroyed . | . . Machines Disabled . | . . Actions | -11 -10 --------- Run | Yrd Mat Total 834 | 88 746 Wait 18 | . 18 Move 686 | 66 620 Hop . | . . Pick Up 16 | 4 12 Fast Attach 7 | 7 . Attach 3 | . 3 Detach . | . . Swap 10 | . 10 Drop 10 | . 10 Fire 84 | 11 73 Melee . | . . Ram . | . . Kick . | . . Crush . | . . Escape Stasis . | . . Rewire . | . . Trap . | . . Miscellaneous . | . . Route ------- -11/Scrapyard -10/Materials (discovered 4 exits: [*Mat x2] / [*Min x2]) History --------- Turn | Location | Event 9 | -11/Scrapyard | Discovered new exit (range 16) 151 | -11/Scrapyard | Entered Materials 303 | -10/Materials | Build established: Mutant 808 | -10/Materials | Discovered new exit (range 8) 1413 | -10/Materials | Discovered new exit (range 4) 1422 | -10/Materials | Discovered new exit (range 16) 1480 | -10/Materials | Core integrity fell below 50% 1780 | -10/Materials | Discovered new exit (range 10) 2039 | -10/Materials | Core integrity fell below 20% 2062 | -10/Materials | Destroyed by G-34 Mercenary with Small Laser Last Messages --------------- Matter reserves: 0 Inventory: Empty 01976_ Acquired Transport Network Coupler. 02003_ K-01 Serf cleans the Electrolysis Chamber. 02022_ K-01 Serf destroyed. 02027_ Lgt. Treads destroyed. 02031_ Particle Gun destroyed. 02033_ Seismic Detector destroyed. 02039_ Lgt. Treads destroyed. 02041_ R-06 Scavenger collects Med. Matter Pod. 02041_ G-34 Mercenary destroyed. 02041_ Switching to secondary target: G-34 Mercenary. 02044_ Acquired 25 matter. 02047_ U-05 Engineer builds a Wall. 02049_ R-06 Scavenger inserts Med. Matter Pod into recycling unit. 02050_ Recycling unit begins recycling process. 02053_ G-34 Mercenary destroyed. 02054_ R-06 Scavenger collects Aluminum Leg. 02057_ R-06 Scavenger inserts Aluminum Leg into recycling unit. 02060_ R-06 Scavenger collects Heat Sink. Map ----- +----------------------------------------------------+ | | | ?????????????????????????????????????????? | | ?????????????????????????????????????????? | | ???????????????????????????????????####### | | ?????????????????????????????####### | | ???????????????############### # | | ???????????????# # % | | ???????????????# %/ | | ???????????????# # | | ???????????????############### # "" | | ?????????????????????????????## ## "" | | ??????????????????????????????# ## "" | | ??????????????????????????????#! ## [% | | ??????????????????????????????#%= #####+## | | ??????????????????????????????# | | ??????????????????????????????# # | | ??????????????????????????????# # | | ??????????????????????????????# """ # | | ?????????????????????########## """"" # | | ????????###########??# """ # """"" # | | ????????# ! #??# "T" # """"" # | | ######??# #??# # """ # | | # #??# """ #??# +% # | | #"" #??# """ g #??# #% # | | #"Y #??# """ r%#??# #######+#### | | #"" #### "Y"@#??# // #????? ??? | | # + + """g#??# /// #????"T" ??? | | # # # %g *#??#! /// #??? ## | | # # #####+#####??#######+##### + | | # # #???######?# """ # ## | | # ####### #???# #?# """ # #? | | ######?????# ##### #?# """ ######### | | ???????????# #?# + | | ???????????# #?# ! ######### | | ???????????# #?# ######### | | ???????????# """ #######+## # | | ?????????### """"" % | | ?????????#"" """"" % ! < | | ?????????#"T """"" % !!! % | | ?????????#"" "" #######+## | # | | ?????????###% ##?#=== # "|"|" # | | ???????????# #??#==/ ""#""|"|""# | | ?########### #??#==/ ""######### | | ?# # #??# T"#???????? | | ?# # #??# ""#???????? | | ?# # #??# #???????? | | ?# + "T" ###########???????? | | ?# """"" # """ + #???????? | | ?# """"" # # """ #???????? | | ?# """"" # % # """"" #???????? | +----------------------------------------------------+ Best States ------------- Heat Dissipation 25 Energy Generation 10 Energy Capacity 250 Matter Stores 300 Matter Capacity 300 Sight Range 16 Terrain Scan Density 10 Evasion (%) 40 Recoil Reduction 2 Item Schematics ----------------- None Robot Schematics ------------------ None Fabricated ------------ Nothing Alien Tech Used ----------------- None Achievements -------------- None Challenges ------------ None Game ------ Seed NeutronHeatNukerbomber Manual? 0 Play Time 00:11:07 Cumulative 82.3 hours Start 2024.07.15 @ 11:35:43 End 2024.07.15 @ 11:45:11 Sessions 1 Manual Loads 0 Difficulty Rogue Special Mode None Game No. 54 Rogue 53 Adventurer 1 Explorer 0 Win Type - Total 0 Types 0/0/0/0/0/0/0/0/0 Lore% 35 Gallery% 39 Achievement% 37 Wizard Run 0 Options --------- Layout 1 ASCII 0 Keyboard 0 Movement Mouse Keybinds 0 Fullscreen 1 Font 24/Proggy Map View 76x35 Zoom Use 0% Tactical HUD 1 Map Filters NONE Filters NONE Steam 1 RUN: 77a6f6d6-34ae-4134-9040-31f6364f341f